[Event "*** Titled Tuesday Blitz"]
[Site "Chess.com"]
[Date "2020.04.07"]
[Round "7"]
[White "Volodar_Murzin"]
[Black "RD4ever"]
[Result "1-0"]
[WhiteElo "2709"]
[BlackElo "2830"]
[TimeControl "180+1"]
[EndTime "14:20:16 PDT"]
[Termination "Volodar_Murzin won by resignation"]

1. Nf3 {[%clk 0:03:00.9]} 1... d5 {[%clk 0:02:53.5]} 2. g3 {[%clk 0:03:00.3]}
2... Nd7 {[%clk 0:02:53.3]} 3. d4 {[%clk 0:02:56.3]} 3... Nb6 {[%clk 0:02:53.4]}
4. Bg2 {[%clk 0:02:56.5]} 4... Bf5 {[%clk 0:02:53.6]} 5. O-O {[%clk 0:02:56.8]}
5... h6 {[%clk 0:02:52]} 6. Nbd2 {[%clk 0:02:55.8]} 6... e6 {[%clk 0:02:51.9]}
7. Re1 {[%clk 0:02:56.1]} 7... Nf6 {[%clk 0:02:51.6]} 8. Nf1 {[%clk 0:02:43.8]}
8... Be7 {[%clk 0:02:48.3]} 9. a4 {[%clk 0:02:38.1]} 9... a5 {[%clk 0:02:46.2]}
10. b3 {[%clk 0:02:36.9]} 10... O-O {[%clk 0:02:45.9]} 11. Ne5 {[%clk 0:02:33]}
11... Bb4 {[%clk 0:02:31.7]} 12. Bd2 {[%clk 0:02:31.4]} 12... Bd6 {[%clk
0:02:32.3]} 13. Rc1 {[%clk 0:02:27.5]} 13... Nbd7 {[%clk 0:02:31.1]} 14. Nd3
{[%clk 0:02:25.8]} 14... c5 {[%clk 0:02:21.5]} 15. dxc5 {[%clk 0:02:22.9]} 15...
Nxc5 {[%clk 0:02:22.4]} 16. Nxc5 {[%clk 0:02:20.8]} 16... Bxc5 {[%clk
0:02:22.3]} 17. c4 {[%clk 0:02:17.6]} 17... Ba3 {[%clk 0:02:07.9]} 18. Ra1
{[%clk 0:02:14.5]} 18... Bc5 {[%clk 0:01:45.2]} 19. Ne3 {[%clk 0:02:05.1]} 19...
Bg6 {[%clk 0:01:45]} 20. cxd5 {[%clk 0:02:03.1]} 20... exd5 {[%clk 0:01:45.9]}
21. Rc1 {[%clk 0:01:28.4]} 21... Ba3 {[%clk 0:01:44.6]} 22. Ra1 {[%clk
0:01:26.7]} 22... Bc5 {[%clk 0:01:44.6]} 23. Rc1 {[%clk 0:01:24.6]} 23... Qb6
{[%clk 0:01:31.6]} 24. Rf1 {[%clk 0:01:03.3]} 24... Rad8 {[%clk 0:01:31.1]} 25.
Qe1 {[%clk 0:01:01.2]} 25... Bxe3 {[%clk 0:00:48.7]} 26. Bxe3 {[%clk 0:00:58.6]}
26... d4 {[%clk 0:00:48.7]} 27. Bd2 {[%clk 0:00:53.1]} 27... Qxb3 {[%clk
0:00:49]} 28. Bxa5 {[%clk 0:00:51.7]} 28... b6 {[%clk 0:00:49.5]} 29. Qb4 {[%clk
0:00:39.9]} 29... Qxb4 {[%clk 0:00:49.6]} 30. Bxb4 {[%clk 0:00:40.8]} 30... Rfe8
{[%clk 0:00:50.5]} 31. Rfe1 {[%clk 0:00:39.6]} 31... Nd5 {[%clk 0:00:50.4]} 32.
Bd2 {[%clk 0:00:38.6]} 32... Be4 {[%clk 0:00:48]} 33. Bxe4 {[%clk 0:00:36.6]}
33... Rxe4 {[%clk 0:00:48.9]} 34. Rc4 {[%clk 0:00:35.9]} 34... Nf6 {[%clk
0:00:38.3]} 35. Kf1 {[%clk 0:00:19.3]} 35... d3 {[%clk 0:00:25.8]} 36. Rc6
{[%clk 0:00:15]} 36... Rxa4 {[%clk 0:00:22.5]} 37. Rxb6 {[%clk 0:00:14.5]} 37...
Ra2 {[%clk 0:00:22.4]} 38. Be3 {[%clk 0:00:13.5]} 38... d2 {[%clk 0:00:20]} 39.
Rd1 {[%clk 0:00:13.9]} 39... Ne4 {[%clk 0:00:20.5]} 40. Rb3 {[%clk 0:00:13.2]}
40... Rc2 {[%clk 0:00:18.6]} 41. Rd3 {[%clk 0:00:11.9]} 41... Re8 {[%clk
0:00:11.9]} 42. f3 {[%clk 0:00:08.4]} 42... Nc3 {[%clk 0:00:08.3]} 43. R1xd2
{[%clk 0:00:08.5]} 43... Rxd2 {[%clk 0:00:06.4]} 44. Bxd2 {[%clk 0:00:09.4]}
44... Nb5 {[%clk 0:00:05.6]} 45. e4 {[%clk 0:00:09]} 45... Na7 {[%clk
0:00:05.8]} 46. Be3 {[%clk 0:00:09.3]} 46... Nc6 {[%clk 0:00:06.4]} 47. Kg2
{[%clk 0:00:09.8]} 47... Ne5 {[%clk 0:00:06.7]} 48. Rc3 {[%clk 0:00:10.1]} 48...
f6 {[%clk 0:00:06.9]} 49. Bf2 {[%clk 0:00:10.5]} 49... h5 {[%clk 0:00:07.4]} 50.
h3 {[%clk 0:00:11]} 50... Nf7 {[%clk 0:00:07.4]} 51. Rc4 {[%clk 0:00:10.4]}
51... g6 {[%clk 0:00:07.9]} 52. Rd4 {[%clk 0:00:10.4]} 52... Re6 {[%clk
0:00:08.1]} 53. f4 {[%clk 0:00:10.7]} 53... Kf8 {[%clk 0:00:08.1]} 54. Kf3
{[%clk 0:00:11.2]} 54... Ke8 {[%clk 0:00:08.5]} 55. Be3 {[%clk 0:00:12]} 55...
Rd6 {[%clk 0:00:08.3]} 56. Rc4 {[%clk 0:00:11.8]} 56... Kd7 {[%clk 0:00:08.2]}
57. Ra4 {[%clk 0:00:12.2]} 57... Rc6 {[%clk 0:00:08.7]} 58. Ra7+ {[%clk
0:00:12.5]} 58... Rc7 {[%clk 0:00:09.2]} 59. Ra6 {[%clk 0:00:13]} 59... Rc6
{[%clk 0:00:09.8]} 60. Ra7+ {[%clk 0:00:13.6]} 60... Rc7 {[%clk 0:00:10.3]} 61.
Ra5 {[%clk 0:00:14.2]} 61... Nd6 {[%clk 0:00:10.2]} 62. g4 {[%clk 0:00:13]}
62... hxg4+ {[%clk 0:00:10.3]} 63. hxg4 {[%clk 0:00:13.9]} 63... Rc3 {[%clk
0:00:10]} 64. Rd5 {[%clk 0:00:13.5]} 64... Ke6 {[%clk 0:00:09.9]} 65. f5+ {[%clk
0:00:10.1]} 65... gxf5 {[%clk 0:00:10.2]} 66. gxf5+ {[%clk 0:00:11]} 66... Ke7
{[%clk 0:00:10.6]} 67. Kf4 {[%clk 0:00:11.3]} 67... Rc4 {[%clk 0:00:06.1]} 68.
Bc5 {[%clk 0:00:11.5]} 68... Rxe4+ {[%clk 0:00:05.3]} 69. Kf3 {[%clk 0:00:11.9]}
69... Ra4 {[%clk 0:00:05.2]} 70. Bxd6+ {[%clk 0:00:12.2]} 70... Kf7 {[%clk
0:00:06.1]} 71. Bf4 {[%clk 0:00:12.6]} 71... Ra3+ {[%clk 0:00:06.2]} 72. Be3
{[%clk 0:00:12.7]} 72... Ra7 {[%clk 0:00:07.1]} 73. Bxa7 {[%clk 0:00:12]} 1-0

[Event "*** Titled Tuesday Blitz"]
[Site "Chess.com"]
[Date "2020.04.07"]
[Round "7"]
[White "Fianchettoed-Tower"]
[Black "kungmongmanh"]
[Result "1-0"]
[WhiteElo "2388"]
[BlackElo "2525"]
[TimeControl "180+1"]
[EndTime "14:20:17 PDT"]
[Termination "Fianchettoed-Tower won by checkmate"]

1. e4 {[%clk 0:03:00.9]} 1... e6 {[%clk 0:02:59.6]} 2. d4 {[%clk 0:02:58.8]}
2... d5 {[%clk 0:02:59.8]} 3. e5 {[%clk 0:02:59.4]} 3... c5 {[%clk 0:02:59.7]}
4. c3 {[%clk 0:03:00]} 4... Nc6 {[%clk 0:03:00.2]} 5. Nf3 {[%clk 0:03:00.5]}
5... Bd7 {[%clk 0:03:00.6]} 6. Bd3 {[%clk 0:02:59.8]} 6... Qb6 {[%clk
0:02:59.3]} 7. O-O {[%clk 0:03:00.2]} 7... cxd4 {[%clk 0:02:59.5]} 8. Re1 {[%clk
0:03:00.8]} 8... dxc3 {[%clk 0:02:56]} 9. Nxc3 {[%clk 0:03:00.4]} 9... a6 {[%clk
0:02:53.5]} 10. h4 {[%clk 0:02:54.5]} 10... Bc5 {[%clk 0:02:43.1]} 11. Qe2
{[%clk 0:02:51.5]} 11... Nd4 {[%clk 0:02:40.4]} 12. Nxd4 {[%clk 0:02:51.4]}
12... Bxd4 {[%clk 0:02:40.7]} 13. Qf3 {[%clk 0:02:42.8]} 13... Ne7 {[%clk
0:02:38.4]} 14. h5 {[%clk 0:02:27]} 14... h6 {[%clk 0:02:16.2]} 15. Qg3 {[%clk
0:02:24.6]} 15... Kf8 {[%clk 0:01:35.3]} 16. Rb1 {[%clk 0:02:24]} 16... Rc8
{[%clk 0:01:33.2]} 17. Ne2 {[%clk 0:02:22.4]} 17... Bc5 {[%clk 0:01:15.5]} 18.
b4 {[%clk 0:02:20.5]} 18... Bd4 {[%clk 0:01:06.9]} 19. Qf4 {[%clk 0:02:11.9]}
19... Bc3 {[%clk 0:00:50.8]} 20. Rf1 {[%clk 0:01:54]} 20... Qc7 {[%clk
0:00:38.6]} 21. Nxc3 {[%clk 0:01:46.2]} 21... Qxc3 {[%clk 0:00:38.7]} 22. Bg6
{[%clk 0:01:42.1]} 22... Be8 {[%clk 0:00:39]} 23. Be3 {[%clk 0:01:38.5]} 23...
Qc4 {[%clk 0:00:36.1]} 24. Qf3 {[%clk 0:01:35.7]} 24... Qxa2 {[%clk 0:00:33.2]}
25. Bc5 {[%clk 0:01:33.8]} 25... Rc7 {[%clk 0:00:30.5]} 26. Bd6 {[%clk
0:01:32.2]} 26... Rd7 {[%clk 0:00:30.8]} 27. Rbc1 {[%clk 0:01:32.6]} 27... Kg8
{[%clk 0:00:29.9]} 28. Bd3 {[%clk 0:01:24.6]} 28... Nc6 {[%clk 0:00:28.3]} 29.
b5 {[%clk 0:01:21.3]} 29... axb5 {[%clk 0:00:26.8]} 30. Bxb5 {[%clk 0:01:22.2]}
30... Rd8 {[%clk 0:00:24.4]} 31. Ra1 {[%clk 0:01:22]} 31... Qb2 {[%clk
0:00:23.8]} 32. Rfb1 {[%clk 0:01:21.7]} 32... Qd4 {[%clk 0:00:23.5]} 33. Re1
{[%clk 0:01:16.9]} 33... Qb2 {[%clk 0:00:20.7]} 34. Rab1 {[%clk 0:01:15.9]}
34... Qd4 {[%clk 0:00:20.5]} 35. Bd3 {[%clk 0:01:12.1]} 35... Rd7 {[%clk
0:00:18.5]} 36. Bc2 {[%clk 0:01:03]} 36... Qd2 {[%clk 0:00:18.1]} 37. Re2 {[%clk
0:01:00.6]} 37... Qd4 {[%clk 0:00:17.7]} 38. Rd1 {[%clk 0:01:00.6]} 38... Qb6
{[%clk 0:00:15.6]} 39. Rb1 {[%clk 0:00:59.2]} 39... Qd4 {[%clk 0:00:15.7]} 40.
Re3 {[%clk 0:00:57.8]} 40... Qd2 {[%clk 0:00:13.9]} 41. Ba4 {[%clk 0:00:52.4]}
41... Qa2 {[%clk 0:00:07.7]} 42. Qd1 {[%clk 0:00:43.4]} 42... Rd8 {[%clk
0:00:06.2]} 43. Ra3 {[%clk 0:00:43.2]} 43... Qc4 {[%clk 0:00:05.4]} 44. Bb5
{[%clk 0:00:42.8]} 44... Qe4 {[%clk 0:00:05.3]} 45. Ra4 {[%clk 0:00:42.8]} 45...
Qf5 {[%clk 0:00:05.1]} 46. g4 {[%clk 0:00:35.6]} 46... Qg5 {[%clk 0:00:05.5]}
47. f4 {[%clk 0:00:35.1]} 47... Qh4 {[%clk 0:00:06]} 48. Qf3 {[%clk 0:00:35.1]}
48... Bd7 {[%clk 0:00:04.4]} 49. Bc5 {[%clk 0:00:33.8]} 49... Rc8 {[%clk
0:00:04.3]} 50. Bf2 {[%clk 0:00:34.1]} 50... Qe7 {[%clk 0:00:04.6]} 51. Qg3
{[%clk 0:00:33]} 51... Nd8 {[%clk 0:00:04.9]} 52. Bxd7 {[%clk 0:00:21.1]} 52...
Qxd7 {[%clk 0:00:05.5]} 53. Rd4 {[%clk 0:00:21.4]} 53... Rc4 {[%clk 0:00:05.5]}
54. Rf1 {[%clk 0:00:21.3]} 54... Rxd4 {[%clk 0:00:05.9]} 55. Bxd4 {[%clk
0:00:22.2]} 55... Kh7 {[%clk 0:00:06.1]} 56. f5 {[%clk 0:00:22.3]} 56... Nc6
{[%clk 0:00:05.3]} 57. Qd3 {[%clk 0:00:19.4]} 57... Nxd4 {[%clk 0:00:04.4]} 58.
Qxd4 {[%clk 0:00:20.3]} 58... Rc8 {[%clk 0:00:04.7]} 59. f6 {[%clk 0:00:20.5]}
59... g6 {[%clk 0:00:03.6]} 60. Qd3 {[%clk 0:00:20.6]} 60... Rc4 {[%clk
0:00:02.1]} 61. hxg6+ {[%clk 0:00:20.9]} 61... fxg6 {[%clk 0:00:02.6]} 62. f7
{[%clk 0:00:21.7]} 62... Rxg4+ {[%clk 0:00:03]} 63. Kh2 {[%clk 0:00:22.2]} 63...
Qe7 {[%clk 0:00:02.3]} 64. Qh3 {[%clk 0:00:21]} 64... Rh4 {[%clk 0:00:01.7]} 65.
f8=Q {[%clk 0:00:21.2]} 65... Rxh3+ {[%clk 0:00:02.1]} 66. Kxh3 {[%clk
0:00:21.9]} 66... Qg5 {[%clk 0:00:01.7]} 67. Rf7# {[%clk 0:00:21.3]} 1-0

[Event "*** Titled Tuesday Blitz"]
[Site "Chess.com"]
[Date "2020.04.07"]
[Round "7"]
[White "ajian"]
[Black "albi1999"]
[Result "1/2-1/2"]
[WhiteElo "2407"]
[BlackElo "2578"]
[TimeControl "180+1"]
[EndTime "14:20:31 PDT"]
[Termination "Game drawn - insufficient material"]

1. d4 {[%clk 0:03:00.9]} 1... d5 {[%clk 0:02:57.3]} 2. c4 {[%clk 0:03:00.9]}
2... e6 {[%clk 0:02:56.9]} 3. Nc3 {[%clk 0:03:00.7]} 3... Bb4 {[%clk 0:02:56.1]}
4. e3 {[%clk 0:02:52.4]} 4... Nf6 {[%clk 0:02:55.3]} 5. Bd3 {[%clk 0:02:50.5]}
5... O-O {[%clk 0:02:52.7]} 6. Qc2 {[%clk 0:02:49]} 6... c5 {[%clk 0:02:47.2]}
7. dxc5 {[%clk 0:02:48.2]} 7... Nbd7 {[%clk 0:02:41.5]} 8. a3 {[%clk 0:02:28.8]}
8... Bxc3+ {[%clk 0:02:39.1]} 9. bxc3 {[%clk 0:02:28.8]} 9... Nxc5 {[%clk
0:02:35.6]} 10. Nf3 {[%clk 0:02:28.9]} 10... Nxd3+ {[%clk 0:02:34.3]} 11. Qxd3
{[%clk 0:02:28.7]} 11... dxc4 {[%clk 0:02:35.2]} 12. Qxc4 {[%clk 0:02:26.2]}
12... b6 {[%clk 0:02:33.8]} 13. O-O {[%clk 0:02:25.6]} 13... Bb7 {[%clk
0:02:32.7]} 14. Qe2 {[%clk 0:02:11]} 14... Qc7 {[%clk 0:02:30.7]} 15. c4 {[%clk
0:02:06.7]} 15... Ng4 {[%clk 0:02:29.4]} 16. g3 {[%clk 0:01:57.8]} 16... Qc6
{[%clk 0:02:28.2]} 17. e4 {[%clk 0:01:35.3]} 17... Qxe4 {[%clk 0:02:27.1]} 18.
Qxe4 {[%clk 0:01:36.2]} 18... Bxe4 {[%clk 0:02:27.5]} 19. Nd2 {[%clk 0:01:32]}
19... Bb7 {[%clk 0:02:22.9]} 20. Bb2 {[%clk 0:01:30.3]} 20... Rfd8 {[%clk
0:02:22.1]} 21. Rfd1 {[%clk 0:01:28.9]} 21... Rd3 {[%clk 0:02:17.3]} 22. Nf1
{[%clk 0:01:22.5]} 22... Rad8 {[%clk 0:02:13.3]} 23. Rxd3 {[%clk 0:01:14.6]}
23... Rxd3 {[%clk 0:02:14.2]} 24. a4 {[%clk 0:01:15.5]} 24... Rb3 {[%clk
0:01:51.7]} 25. Bd4 {[%clk 0:01:14.6]} 25... Rb4 {[%clk 0:01:49.3]} 26. Nd2
{[%clk 0:01:09.2]} 26... Bc6 {[%clk 0:01:33]} 27. a5 {[%clk 0:01:08.7]} 27...
Ra4 {[%clk 0:00:42.2]} 28. Rxa4 {[%clk 0:00:58.3]} 28... Bxa4 {[%clk 0:00:43.1]}
29. axb6 {[%clk 0:00:58.7]} 29... axb6 {[%clk 0:00:43.8]} 30. Bxb6 {[%clk
0:00:59.6]} 30... Ne5 {[%clk 0:00:43.4]} 31. c5 {[%clk 0:00:54.5]} 31... Kf8
{[%clk 0:00:36.7]} 32. Bc7 {[%clk 0:00:45.8]} 32... Nd3 {[%clk 0:00:27.1]} 33.
Bd6+ {[%clk 0:00:46.2]} 33... Ke8 {[%clk 0:00:27.4]} 34. f4 {[%clk 0:00:41.2]}
34... Kd7 {[%clk 0:00:25.7]} 35. Nc4 {[%clk 0:00:41.2]} 35... Kc6 {[%clk
0:00:06.7]} 36. Ne5+ {[%clk 0:00:28.1]} 36... Nxe5 {[%clk 0:00:06.6]} 37. Bxe5
{[%clk 0:00:29]} 37... f6 {[%clk 0:00:04.5]} 38. Bd6 {[%clk 0:00:28.6]} 38...
Kd5 {[%clk 0:00:04.8]} 39. Kf2 {[%clk 0:00:28.2]} 39... Ke4 {[%clk 0:00:05.2]}
40. h4 {[%clk 0:00:22.7]} 40... h6 {[%clk 0:00:04.4]} 41. Bf8 {[%clk 0:00:19.1]}
41... g5 {[%clk 0:00:04.2]} 42. Bxh6 {[%clk 0:00:12]} 42... gxh4 {[%clk
0:00:04]} 43. gxh4 {[%clk 0:00:12.9]} 43... Bc6 {[%clk 0:00:03.1]} 44. Bg7
{[%clk 0:00:09.9]} 44... Kf5 {[%clk 0:00:03.4]} 45. h5 {[%clk 0:00:09.5]} 45...
e5 {[%clk 0:00:02.4]} 46. fxe5 {[%clk 0:00:07.8]} 46... fxe5 {[%clk 0:00:03.3]}
47. h6 {[%clk 0:00:08.2]} 47... Kg6 {[%clk 0:00:03.4]} 48. Ke3 {[%clk
0:00:08.1]} 48... e4 {[%clk 0:00:03.4]} 49. Bf8 {[%clk 0:00:07.6]} 49... Kh7
{[%clk 0:00:02.8]} 50. Kf4 {[%clk 0:00:07.1]} 50... Ba8 {[%clk 0:00:03.2]} 51.
Bg7 {[%clk 0:00:07.2]} 51... Bb7 {[%clk 0:00:03.6]} 52. Ke3 {[%clk 0:00:06.3]}
52... Ba8 {[%clk 0:00:03.8]} 53. Kd4 {[%clk 0:00:06.4]} 53... Kg6 {[%clk
0:00:04]} 54. Ke5 {[%clk 0:00:06.1]} 54... e3 {[%clk 0:00:03.7]} 55. Kd6 {[%clk
0:00:06]} 55... e2 {[%clk 0:00:02.5]} 56. Bc3 {[%clk 0:00:06.1]} 56... Kxh6
{[%clk 0:00:03]} 57. Kc7 {[%clk 0:00:05.8]} 57... Kg5 {[%clk 0:00:03.3]} 58. Kb8
{[%clk 0:00:05.8]} 58... Be4 {[%clk 0:00:04.2]} 59. Be1 {[%clk 0:00:05.9]} 59...
Kg4 {[%clk 0:00:05.1]} 60. Kc7 {[%clk 0:00:06.3]} 60... Kf3 {[%clk 0:00:05.6]}
61. c6 {[%clk 0:00:06.7]} 61... Kg2 {[%clk 0:00:06.5]} 62. Kd7 {[%clk
0:00:06.8]} 62... Bxc6+ {[%clk 0:00:07.4]} 63. Kxc6 {[%clk 0:00:06.5]} 63... Kf1
{[%clk 0:00:08.3]} 64. Bb4 {[%clk 0:00:06.9]} 64... e1=Q {[%clk 0:00:09.2]} 65.
Bxe1 {[%clk 0:00:07.2]} 1/2-1/2

[Event "*** Titled Tuesday Blitz"]
[Site "Chess.com"]
[Date "2020.04.07"]
[Round "7"]
[White "hermionegrangermagic"]
[Black "Kaua18"]
[Result "1-0"]
[WhiteElo "2476"]
[BlackElo "2186"]
[TimeControl "180+1"]
[EndTime "14:20:31 PDT"]
[Termination "hermionegrangermagic won by checkmate"]

1. e4 {[%clk 0:03:00.9]} 1... c5 {[%clk 0:03:00.3]} 2. Nf3 {[%clk 0:03:00.5]}
2... Nc6 {[%clk 0:03:00.9]} 3. d4 {[%clk 0:03:01.3]} 3... cxd4 {[%clk
0:03:01.8]} 4. Nxd4 {[%clk 0:03:02]} 4... Nf6 {[%clk 0:03:02.3]} 5. Nc3 {[%clk
0:03:02.6]} 5... e5 {[%clk 0:03:02.8]} 6. Ndb5 {[%clk 0:03:03.2]} 6... d6 {[%clk
0:03:03.3]} 7. Bg5 {[%clk 0:03:03.8]} 7... a6 {[%clk 0:03:03.7]} 8. Na3 {[%clk
0:03:04.4]} 8... b5 {[%clk 0:03:04]} 9. Bxf6 {[%clk 0:03:05]} 9... gxf6 {[%clk
0:03:04.9]} 10. Nd5 {[%clk 0:03:05.6]} 10... Bg7 {[%clk 0:03:05.6]} 11. c3
{[%clk 0:03:04.8]} 11... f5 {[%clk 0:03:03.5]} 12. Bd3 {[%clk 0:03:04.6]} 12...
Ne7 {[%clk 0:02:59.5]} 13. Nxe7 {[%clk 0:02:58.2]} 13... Qxe7 {[%clk 0:03:00.4]}
14. Nc2 {[%clk 0:02:58.2]} 14... Bb7 {[%clk 0:02:56.2]} 15. Qe2 {[%clk
0:02:54.9]} 15... fxe4 {[%clk 0:02:55]} 16. Bxe4 {[%clk 0:02:54.6]} 16... d5
{[%clk 0:02:55.5]} 17. Bf5 {[%clk 0:02:53.9]} 17... Qg5 {[%clk 0:02:54]} 18. Bh3
{[%clk 0:02:49.7]} 18... O-O {[%clk 0:02:48.8]} 19. O-O {[%clk 0:02:48.4]} 19...
f5 {[%clk 0:02:47.3]} 20. f4 {[%clk 0:02:40.8]} 20... Qg6 {[%clk 0:02:35.2]} 21.
fxe5 {[%clk 0:02:38.4]} 21... Rae8 {[%clk 0:02:34.8]} 22. Rae1 {[%clk
0:02:29.5]} 22... Bxe5 {[%clk 0:02:28.1]} 23. Qf3 {[%clk 0:02:24.6]} 23... Qd6
{[%clk 0:01:34.4]} 24. Bxf5 {[%clk 0:02:19.5]} 24... Bxh2+ {[%clk 0:01:33.7]}
25. Kh1 {[%clk 0:02:19.2]} 25... Bg3 {[%clk 0:00:47.9]} 26. Rxe8 {[%clk
0:01:33.7]} 26... Rxe8 {[%clk 0:00:46.8]} 27. Bxh7+ {[%clk 0:01:18.7]} 27... Kh8
{[%clk 0:00:44.4]} 28. Qh5 {[%clk 0:01:15.5]} 28... Qe5 {[%clk 0:00:03.3]} 29.
Bf5+ {[%clk 0:01:11.8]} 29... Kg7 {[%clk 0:00:03.4]} 30. Qg6+ {[%clk 0:00:52]}
30... Kf8 {[%clk 0:00:03.4]} 31. Be6+ {[%clk 0:00:42.6]} 31... Ke7 {[%clk
0:00:03]} 32. Rf7+ {[%clk 0:00:20.4]} 32... Kd6 {[%clk 0:00:03.2]} 33. Bd7+
{[%clk 0:00:11.1]} 33... Kc7 {[%clk 0:00:01.8]} 34. Bxe8+ {[%clk 0:00:10.3]}
34... Kb8 {[%clk 0:00:01.5]} 35. Rxb7+ {[%clk 0:00:06.4]} 35... Kxb7 {[%clk
0:00:01.5]} 36. Bc6+ {[%clk 0:00:06.2]} 36... Kb8 {[%clk 0:00:02.1]} 37. Qe8+
{[%clk 0:00:04.8]} 37... Kc7 {[%clk 0:00:01.4]} 38. Qxe5+ {[%clk 0:00:04.8]}
38... Kb6 {[%clk 0:00:02]} 39. Bxd5 {[%clk 0:00:05.7]} 39... Bxe5 {[%clk
0:00:02]} 40. g4 {[%clk 0:00:05.9]} 40... Kc5 {[%clk 0:00:02.4]} 41. Bf3 {[%clk
0:00:06.2]} 41... Bf4 {[%clk 0:00:02.9]} 42. Kg2 {[%clk 0:00:06.1]} 42... Bc1
{[%clk 0:00:02.8]} 43. b3 {[%clk 0:00:04.7]} 43... Bb2 {[%clk 0:00:02.7]} 44.
b4+ {[%clk 0:00:05.6]} 44... Kc4 {[%clk 0:00:02.5]} 45. Be2+ {[%clk 0:00:05.4]}
45... Kxc3 {[%clk 0:00:02.3]} 46. Ne3 {[%clk 0:00:05.7]} 46... Kd2 {[%clk
0:00:02.6]} 47. Kf3 {[%clk 0:00:05]} 47... Bc3 {[%clk 0:00:01.5]} 48. Nf1+
{[%clk 0:00:04.6]} 48... Ke1 {[%clk 0:00:01.5]} 49. Ng3 {[%clk 0:00:04.3]} 49...
Bxb4 {[%clk 0:00:01.9]} 50. Ne4 {[%clk 0:00:04.6]} 50... Bf8 {[%clk 0:00:02.5]}
51. g5 {[%clk 0:00:04.8]} 51... b4 {[%clk 0:00:02.9]} 52. Bxa6 {[%clk 0:00:04]}
52... Kd1 {[%clk 0:00:02.2]} 53. Bc4 {[%clk 0:00:04]} 53... Kc2 {[%clk
0:00:02.4]} 54. Bb3+ {[%clk 0:00:04.1]} 54... Kd3 {[%clk 0:00:01.3]} 55. Kf4
{[%clk 0:00:04.3]} 55... Kd4 {[%clk 0:00:02]} 56. Kf5 {[%clk 0:00:04.5]} 56...
Bg7 {[%clk 0:00:02.6]} 57. Nf6 {[%clk 0:00:04.4]} 57... Kc5 {[%clk 0:00:02.5]}
58. Nh5 {[%clk 0:00:04.4]} 58... Bc3 {[%clk 0:00:02.4]} 59. g6 {[%clk
0:00:04.7]} 59... Bh8 {[%clk 0:00:02.2]} 60. g7 {[%clk 0:00:05]} 60... Bxg7
{[%clk 0:00:02.7]} 61. Nxg7 {[%clk 0:00:05.9]} 61... Kd4 {[%clk 0:00:03.6]} 62.
Ke6 {[%clk 0:00:06]} 62... Kc3 {[%clk 0:00:04.5]} 63. Kd6 {[%clk 0:00:06.3]}
63... Kb2 {[%clk 0:00:03.9]} 64. Kc5 {[%clk 0:00:06.5]} 64... Kc3 {[%clk
0:00:03.7]} 65. Kb5 {[%clk 0:00:06.8]} 65... Kd4 {[%clk 0:00:03.8]} 66. Kxb4
{[%clk 0:00:07.2]} 66... Ke5 {[%clk 0:00:04.7]} 67. Kb5 {[%clk 0:00:08]} 67...
Kd6 {[%clk 0:00:05.6]} 68. a4 {[%clk 0:00:08.4]} 68... Kc7 {[%clk 0:00:06.5]}
69. a5 {[%clk 0:00:08.6]} 69... Kb8 {[%clk 0:00:07.4]} 70. Kb6 {[%clk
0:00:08.6]} 70... Ka8 {[%clk 0:00:07.3]} 71. a6 {[%clk 0:00:09]} 71... Kb8
{[%clk 0:00:08.2]} 72. Be6 {[%clk 0:00:08.7]} 72... Ka8 {[%clk 0:00:08.3]} 73.
Nf5 {[%clk 0:00:08.9]} 73... Kb8 {[%clk 0:00:08.3]} 74. a7+ {[%clk 0:00:09.5]}
74... Ka8 {[%clk 0:00:08.7]} 75. Bd5# {[%clk 0:00:10.4]} 1-0